fUST/lending_fUST_20240920
["ID","MTS","AMOUNT","RATE_DAILY","PERIOD"]
[338612844,1726798244152,-500.0,0.00017598,2]
[338612845,1726798244162,-500.0,0.00017598,2]
[338612846,1726798244171,-500.0,0.00017598,2]
[338612847,1726798244180,-500.0,0.00017598,2]
[338612848,1726798244190,-181.69181811,0.00017598,2]
[338612849,1726798244204,-500.0,0.00017598,2]
[338612850,1726798244213,-500.0,0.00017598,2]
[338612851,1726798244223,-502.27224607,0.00017598,2]
[338612852,1726798244232,-500.0,0.00017598,2]
[338612853,1726798244242,-500.0,0.00017598,2]
[338612854,1726798244251,-500.0,0.00017598,2]
[338612855,1726798244260,-500.0,0.00017598,2]
[338612856,1726798244270,-500.0,0.00017598,2]
[338612857,1726798244279,-500.0,0.00017598,2]
[338612858,1726798244289,-300.0,0.00017598,2]
[338612859,1726798244298,-19297.51300914,0.00017599,5]
[338612918,1726798246353,-1000.0,0.00017491,2]
[338612920,1726798246363,-877.89166854,0.00017599,5]
[338612922,1726798246377,-1692.58904186,0.00017599,5]
[338612925,1726798266855,192.78,0.00010959,2]
[338612926,1726798277401,160.65,0.00010959,2]
[338612928,1726798288081,803.26,0.00010959,2]
[338613000,1726799364153,-252.01042036,0.00015612,2]
[338613030,1726799432511,-300.0,0.00015612,2]
[338613031,1726799432524,-300.0,0.00015612,2]
[338613032,1726799432534,-24900.0,0.00015613,2]
[338613033,1726799432543,-327.0211112,0.00015797,2]
[338613034,1726799432552,-178.571428,0.00016082,2]
[338613035,1726799432562,-178.571428,0.00016221,2]
[338613036,1726799432571,-178.571428,0.00016361,2]
[338613037,1726799432580,-178.571428,0.00016501,2]
[338613038,1726799432590,-588.08549741,0.00016599,2]
[338613039,1726799432601,-178.571428,0.0001664,2]
[338613041,1726799432610,-178.571428,0.0001678,2]
[338613044,1726799432784,-178.571428,0.0001692,2]
[338613045,1726799432796,-420.0,0.00017076,2]
[338613046,1726799432805,-1168.55729695,0.000171,2]
[338613056,1726799438628,-16166.83164409,0.000171,2]
[338613057,1726799438638,-634.67653191,0.00017165,2]
[338613058,1726799438648,-420.0,0.00017173,2]
[338613059,1726799438658,-500.0,0.000172,2]
[338613060,1726799438668,-6334.26591511,0.00017263,2]
[338613061,1726799438680,-10436.78339097,0.00017491,2]
[338613062,1726799438691,-150.0,0.000175,2]
[338613063,1726799438702,-25970.6760017,0.00017569,2]
[338613064,1726799438711,-50290.41955756,0.00017569,2]
[338613068,1726799440581,-21056.50164694,0.00017569,2]
[338613069,1726799440591,-567.08382849,0.0001757,2]
[338613070,1726799440601,-568.52623339,0.0001757,2]
[338613071,1726799440611,-568.52623339,0.0001757,2]
[338613072,1726799440620,-568.52623339,0.0001757,2]
[338613073,1726799440630,-568.52623339,0.0001757,2]
[338613074,1726799440639,-568.52623339,0.0001757,2]
[338613075,1726799440648,-568.52623339,0.0001757,2]
[338613076,1726799440658,-568.52623339,0.0001757,2]
[338613077,1726799440667,-568.52623339,0.0001757,2]
[338613078,1726799440676,-568.52623339,0.0001757,2]
[338613079,1726799440685,-568.52623339,0.0001757,2]
[338613080,1726799440694,-568.52623339,0.0001757,2]
[338613081,1726799440704,-568.52623339,0.0001757,2]
[338613082,1726799440713,-568.52623339,0.0001757,2]
[338613083,1726799440722,-568.52623339,0.0001757,2]
[338613084,1726799440732,-568.52623339,0.0001757,2]
[338613085,1726799440741,-568.52623339,0.0001757,2]
[338613086,1726799440750,-568.52623339,0.0001757,2]
[338613087,1726799440759,-568.52623339,0.0001757,2]
[338613088,1726799440768,-568.52623339,0.0001757,2]
[338613089,1726799440778,-568.52623339,0.0001757,2]
[338613090,1726799440787,-568.52623339,0.0001757,2]
[338613091,1726799440796,-568.52623339,0.0001757,2]
[338613092,1726799440806,-568.52623339,0.0001757,2]
[338613093,1726799440816,-568.52623339,0.0001757,2]
[338613094,1726799440825,-568.52623339,0.0001757,2]
[338613095,1726799440835,-568.52623339,0.0001757,2]
[338613096,1726799440843,-568.52623339,0.0001757,2]
[338613097,1726799440854,-568.52623339,0.0001757,2]
[338613098,1726799440863,-568.52623339,0.0001757,2]
[338613099,1726799440871,-568.52623339,0.0001757,2]
[338613100,1726799440881,-568.52623339,0.0001757,2]
[338613101,1726799440890,-568.52623339,0.0001757,2]
[338613102,1726799440899,-568.52623339,0.0001757,2]
[338613103,1726799440908,-568.52623339,0.0001757,2]
[338613104,1726799440919,-568.52623339,0.0001757,2]
[338613105,1726799440928,-568.52623339,0.0001757,2]
[338613106,1726799440938,-568.52623339,0.0001757,2]
[338613107,1726799440947,-568.52623339,0.0001757,2]
[338613108,1726799440956,-568.52623339,0.0001757,2]
[338613109,1726799440965,-568.52623339,0.0001757,2]
[338613110,1726799440974,-568.52623339,0.0001757,2]
[338613111,1726799440983,-568.52623339,0.0001757,2]
[338613112,1726799440992,-568.52623339,0.0001757,2]
[338613113,1726799441001,-568.52623339,0.0001757,2]
[338613114,1726799441010,-568.52623339,0.0001757,2]
[338613115,1726799441019,-568.52623339,0.0001757,2]
[338613116,1726799441028,-568.52623339,0.0001757,2]
[338613117,1726799441038,-568.52623339,0.0001757,2]
[338613118,1726799441047,-568.52623339,0.0001757,2]
[338613119,1726799441055,-6662.84680851,0.0001757,2]
[338613120,1726799441067,-3238.4541474,0.0001757,2]
[338613121,1726799441078,-317.79355,0.0001757,2]
[338613122,1726799441089,-501.98208771,0.0001757,2]
[338613123,1726799441296,-8386.88755757,0.0001757,2]
[338613126,1726799443631,-6862.71185051,0.0001757,2]
[338613127,1726799443642,-1036.91782918,0.0001757,2]
[338613133,1726799446753,-777.75696568,0.0001757,2]
[338613152,1726799915023,303.0,0.000141,2]
[338613161,1726800451663,150.0,0.00023,120]
[338613182,1726800632812,-342.422611,0.00016362,2]
[338613183,1726800632826,-699.28749797,0.00016362,2]
[338613189,1726800639147,-1947.24818043,0.00016362,2]
[338613190,1726800639158,-300.0,0.00016457,2]
[338613191,1726800639169,-300.0,0.00016457,2]
[338613192,1726800639180,-2458.4303773,0.00016458,2]
[338613211,1726800640889,-1396.1905114,0.00016458,2]
[338613212,1726800640900,-546.39095811,0.00016458,2]
[338613213,1726800640911,-1702.2625083,0.00016458,2]
[338613214,1726800640923,-18796.72564489,0.00016458,2]
[338613215,1726800640932,-6334.26591511,0.00017472,2]
[338613216,1726800640941,-150.0,0.000175,2]
[338613217,1726800640950,-6024.60340411,0.000175,2]
[338613218,1726800640959,-23373.6084016,0.00017548,2]
[338613219,1726800640968,-67688.8414046,0.00017548,2]
[338613220,1726800640977,-500.0,0.0001755,2]
[338613221,1726800640987,-500.0,0.0001755,2]
[338613222,1726800640996,-500.0,0.0001755,2]
[338613223,1726800641006,-500.0,0.0001755,2]
[338613224,1726800641164,-500.0,0.0001755,2]
[338613225,1726800641179,-500.0,0.0001755,2]
[338613226,1726800641188,-500.0,0.0001755,2]
[338613227,1726800641197,-500.0,0.0001755,2]
[338613228,1726800641206,-500.0,0.0001755,2]
[338613229,1726800641216,-500.0,0.0001755,2]
[338613230,1726800641225,-500.0,0.0001755,2]
[338613231,1726800641234,-500.0,0.0001755,2]
[338613232,1726800641243,-500.0,0.0001755,2]
[338613233,1726800641252,-500.0,0.0001755,2]
[338613234,1726800641262,-500.0,0.0001755,2]
[338613235,1726800641271,-500.0,0.0001755,2]
[338613236,1726800641280,-500.0,0.0001755,2]
[338613237,1726800641289,-500.0,0.0001755,2]
[338613238,1726800641303,-500.0,0.0001755,2]
[338613239,1726800641312,-500.0,0.0001755,2]
[338613240,1726800641322,-500.0,0.0001755,2]
[338613241,1726800641331,-420.81870106,0.0001755,2]
[338613242,1726800641341,-500.0,0.0001755,2]
[338613243,1726800641351,-500.0,0.0001755,2]
[338613244,1726800641360,-500.0,0.0001755,2]
[338613245,1726800641369,-500.0,0.0001755,2]
[338613246,1726800641379,-500.0,0.0001755,2]
[338613247,1726800641389,-500.0,0.0001755,2]
[338613248,1726800641399,-500.0,0.0001755,2]
[338613249,1726800641408,-500.0,0.0001755,2]
[338613250,1726800641418,-500.0,0.0001755,2]
[338613251,1726800641427,-500.0,0.0001755,2]
[338613252,1726800641437,-500.0,0.0001755,2]
[338613253,1726800641446,-500.0,0.0001755,2]
[338613254,1726800641455,-500.0,0.0001755,2]
[338613255,1726800641464,-500.0,0.0001755,2]
[338613256,1726800641473,-500.0,0.0001755,2]
[338613257,1726800641483,-500.0,0.0001755,2]
[338613258,1726800641492,-500.0,0.0001755,2]
[338613259,1726800641501,-500.0,0.0001755,2]
[338613260,1726800641511,-500.0,0.0001755,2]
[338613261,1726800641521,-500.0,0.0001755,2]
[338613262,1726800641531,-500.0,0.0001755,2]
[338613263,1726800641541,-500.0,0.0001755,2]
[338613264,1726800641550,-500.0,0.0001755,2]
[338613265,1726800641559,-500.0,0.0001755,2]
[338613266,1726800641569,-500.0,0.0001755,2]
[338613267,1726800641578,-500.0,0.0001755,2]
[338613268,1726800641587,-500.0,0.0001755,2]
[338613269,1726800641598,-500.0,0.0001755,2]
[338613270,1726800641607,-500.0,0.0001755,2]
[338613271,1726800641618,-362.08187011,0.0001755,2]
[338613272,1726800641627,-4484.70544587,0.0001755,5]
[338613273,1726800641637,-8685.93688555,0.0001755,2]
[338613287,1726800644006,-604.0,0.0001748,2]
[338613288,1726800644017,-14687.67151605,0.0001755,2]
[338613289,1726800644028,-67688.8414046,0.0001755,2]
[338613290,1726800644039,-11751.77340755,0.00017551,5]
[338613291,1726800644050,-918.575627,0.00017551,2]
[338613292,1726800644060,-918.575627,0.00017551,2]
[338613293,1726800644070,-918.575627,0.00017551,2]
[338613294,1726800644080,-918.575627,0.00017551,2]
[338613295,1726800644089,-151.0,0.00017551,2]
[338613296,1726800644098,-151.0,0.00017551,2]
[338613297,1726800644107,-151.0,0.00017551,2]
[338613298,1726800644116,-151.0,0.00017551,2]
[338613299,1726800644125,-151.0,0.00017551,2]
[338613300,1726800644134,-151.0,0.00017551,2]
[338613301,1726800644143,-524.817909,0.00017551,2]
[338613302,1726800644152,-524.817909,0.00017551,2]
[338613303,1726800644162,-524.817909,0.00017551,2]
[338613304,1726800644171,-524.817909,0.00017551,2]
[338613305,1726800644182,-446.846941,0.00017551,2]
[338613306,1726800644202,-446.846941,0.00017551,2]
[338613307,1726800644214,-446.846941,0.00017551,2]
[338613308,1726800644225,-446.846941,0.00017551,2]
[338613309,1726800644237,-151.0,0.00017551,2]
[338613310,1726800644248,-151.0,0.00017551,2]
[338613311,1726800644258,-151.0,0.00017551,2]
[338613312,1726800644268,-151.0,0.00017551,2]
[338613313,1726800644278,-352.213059,0.00017551,2]
[338613314,1726800644289,-151.0,0.00017551,2]
[338613315,1726800644303,-151.0,0.00017551,2]
[338613316,1726800644313,-352.213059,0.00017551,2]
[338613317,1726800644323,-352.213059,0.00017551,2]
[338613318,1726800644335,-352.213059,0.00017551,2]
[338613319,1726800644346,-151.0,0.00017551,2]
[338613320,1726800644358,-172.83186,0.00017551,2]
[338613321,1726800644368,-23373.6084016,0.00017551,2]
[338613322,1726800644382,-67688.8414046,0.00017551,2]
[338613323,1726800644394,-23373.6084016,0.00017556,2]
[338613324,1726800644404,-67688.8414046,0.00017556,2]
[338613325,1726800644417,-500.0,0.00017558,2]
[338613326,1726800644428,-500.0,0.00017558,2]
[338613327,1726800644437,-539.82271145,0.00017558,2]
[338613328,1726800644447,-500.0,0.00017558,2]
[338613329,1726800644458,-454.16133999,0.00017558,2]
[338613330,1726800644468,-500.0,0.00017558,2]
[338613331,1726800644479,-629.2716522,0.00017558,2]
[338613332,1726800644489,-500.0,0.00017558,2]
[338613333,1726800644501,-500.0,0.00017558,2]
[338613334,1726800644511,-500.0,0.00017558,2]
[338613335,1726800644522,-500.0,0.00017558,2]
[338613336,1726800644532,-500.0,0.00017558,2]
[338613337,1726800644543,-500.0,0.00017558,2]
[338613338,1726800644553,-500.0,0.00017558,2]
[338613339,1726800644562,-151.0,0.00017558,2]
[338613340,1726800644572,-151.0,0.00017558,2]
[338613341,1726800644583,-277.692011,0.00017558,2]
[338613342,1726800644596,-352.213059,0.00017558,2]
[338613343,1726800644607,-352.213059,0.00017558,2]
[338613344,1726800644617,-918.575627,0.00017559,2]
[338613345,1726800644789,-918.575627,0.00017559,2]
[338613346,1726800644833,-151.0,0.00017559,2]
[338613347,1726800644843,-151.0,0.00017559,2]
[338613348,1726800644854,-153.132413,0.00017559,2]
[338613349,1726800644865,-524.817909,0.00017559,2]
[338613350,1726800644875,-524.817909,0.00017559,2]
[338613351,1726800644885,-524.817909,0.00017559,2]
[338613352,1726800644894,-524.817909,0.00017559,2]
[338613353,1726800644903,-446.846941,0.00017559,2]
[338613354,1726800644912,-446.846941,0.00017559,2]
[338613355,1726800644922,-446.846941,0.00017559,2]
[338613356,1726800644931,-446.846941,0.00017559,2]
[338613357,1726800644940,-177.215734,0.00017559,2]
[338613358,1726800644950,-151.0,0.00017559,2]
[338613359,1726800644959,-352.213059,0.00017559,2]
[338613360,1726800644968,-352.213059,0.00017559,2]
[338613361,1726800644977,-918.575627,0.0001756,2]
[338613362,1726800644987,-918.575627,0.0001756,2]
[338613363,1726800644996,-918.575627,0.0001756,2]
[338613364,1726800645005,-918.575627,0.0001756,2]
[338613365,1726800645014,-151.0,0.0001756,2]
[338613366,1726800645023,-151.0,0.0001756,2]
[338613367,1726800645033,-196.349948,0.0001756,2]
[338613368,1726800645042,-524.817909,0.0001756,2]
[338613369,1726800645053,-524.817909,0.0001756,2]
[338613370,1726800645062,-446.846941,0.0001756,2]
[338613371,1726800645071,-446.846941,0.0001756,2]
[338613372,1726800645080,-151.0,0.0001756,2]
[338613373,1726800645089,-352.213059,0.0001756,2]
[338613374,1726800645098,-352.213059,0.0001756,2]
[338613375,1726800645107,-46747.2168031,0.0001756,2]
[338613376,1726800645116,-135377.682809,0.0001756,2]
[338613377,1726800645126,-70120.8252047,0.00017561,2]
[338613378,1726800645136,-1796.381589,0.00017561,2]
[338613379,1726800645145,-1796.381589,0.00017561,2]
[338613380,1726800645154,-1796.381589,0.00017561,2]
[338613381,1726800645163,-1796.381589,0.00017561,2]
[338613382,1726800645172,-536.475242,0.00017561,2]
[338613383,1726800645182,-536.475242,0.00017561,2]
[338613384,1726800645191,-536.475242,0.00017561,2]
[338613385,1726800645204,-5000.0,0.00017561,2]
[338613386,1726800645213,-5000.0,0.00017561,2]
[338613387,1726800645223,-5000.0,0.00017561,2]
[338613388,1726800645232,-5000.0,0.00017561,2]
[338613389,1726800645242,-5000.0,0.00017561,2]
[338613390,1726800645252,-5000.0,0.00017561,2]
[338613391,1726800645262,-5000.0,0.00017561,2]
[338613392,1726800645271,-2514.912949,0.00017561,2]
[338613393,1726800645281,-536.475242,0.00017561,2]
[338613394,1726800645291,-536.475242,0.00017561,2]
[338613395,1726800645307,-536.475242,0.00017561,2]
[338613396,1726800645317,-1538.86377,0.00017561,2]
[338613397,1726800645326,-1538.86377,0.00017561,2]
[338613398,1726800645335,-1538.86377,0.00017561,2]
[338613399,1726800645344,-1538.86377,0.00017561,2]
[338613400,1726800645354,-1538.86377,0.00017561,2]
[338613401,1726800645364,-1538.86377,0.00017561,2]
[338613402,1726800645373,-266.41875,0.00017561,2]
[338613403,1726800645382,-266.41875,0.00017561,2]
[338613404,1726800645391,-266.41875,0.00017561,2]
[338613405,1726800645400,-266.41875,0.00017561,2]
[338613406,1726800645410,-266.41875,0.00017561,2]
[338613407,1726800645419,-266.41875,0.00017561,2]
[338613408,1726800645429,-166.37939,0.00017561,2]
[338613409,1726800645439,-166.37939,0.00017561,2]
[338613410,1726800645448,-166.37939,0.00017561,2]
[338613411,1726800645457,-166.37939,0.00017561,2]
[338613412,1726800645467,-166.37939,0.00017561,2]
[338613413,1726800645476,-166.37939,0.00017561,2]
[338613414,1726800645485,-166.37939,0.00017561,2]
[338613415,1726800645495,-166.37939,0.00017561,2]
[338613416,1726800645504,-151.0,0.00017561,2]
[338613417,1726800645513,-151.0,0.00017561,2]
[338613418,1726800645523,-151.0,0.00017561,2]
[338613419,1726800645533,-151.0,0.00017561,2]
[338613420,1726800645542,-151.0,0.00017561,2]
[338613421,1726800645554,-152.060727,0.00017561,2]
[338613422,1726800645563,-215.336126,0.00017561,2]
[338613423,1726800645572,-215.336126,0.00017561,2]
[338613424,1726800645582,-215.336126,0.00017561,2]
[338613425,1726800645591,-215.336126,0.00017561,2]
[338613426,1726800645601,-215.336126,0.00017561,2]
[338613427,1726800645610,-215.336126,0.00017561,2]
[338613428,1726800645619,-215.336126,0.00017561,2]
[338613429,1726800645629,-215.336126,0.00017561,2]
[338613430,1726800645638,-918.575627,0.00017561,2]
[338613431,1726800645648,-918.575627,0.00017561,2]
[338613432,1726800645657,-918.575627,0.00017561,2]
[338613433,1726800645667,-918.575627,0.00017561,2]
[338613434,1726800645676,-151.0,0.00017561,2]
[338613435,1726800645685,-151.0,0.00017561,2]
[338613436,1726800645695,-449.36578,0.00017561,2]
[338613437,1726800645704,-449.36578,0.00017561,2]
[338613438,1726800645713,-449.36578,0.00017561,2]
[338613439,1726800645723,-449.36578,0.00017561,2]
[338613440,1726800645733,-449.36578,0.00017561,2]
[338613441,1726800645743,-449.36578,0.00017561,2]
[338613442,1726800645752,-449.36578,0.00017561,2]
[338613443,1726800645762,-449.36578,0.00017561,2]
[338613444,1726800645772,-524.817909,0.00017561,2]
[338613445,1726800645782,-524.817909,0.00017561,2]
[338613446,1726800645792,-524.817909,0.00017561,2]
[338613447,1726800645802,-524.817909,0.00017561,2]
[338613448,1726800645812,-446.846941,0.00017561,2]
[338613449,1726800645821,-446.846941,0.00017561,2]
[338613450,1726800645831,-446.846941,0.00017561,2]
[338613451,1726800645840,-446.846941,0.00017561,2]
[338613452,1726800645850,-151.0,0.00017561,2]
[338613453,1726800645860,-151.0,0.00017561,2]
[338613454,1726800645869,-352.213059,0.00017561,2]
[338613455,1726800645878,-352.213059,0.00017561,2]
[338613456,1726800645890,-352.213059,0.00017561,2]
[338613457,1726800645899,-352.213059,0.00017561,2]
[338613458,1726800645909,-151.0,0.00017562,2]
[338613459,1726800645918,-352.213059,0.00017562,2]
[338613460,1726800645927,-352.213059,0.00017562,2]
[338613461,1726800645937,-23373.6084016,0.00017563,2]
[338613462,1726800645946,-7631.30176287,0.00017567,2]
[338613463,1726800645956,-166.37939,0.00017567,2]
[338613464,1726800645965,-166.37939,0.00017567,2]
[338613465,1726800645974,-151.0,0.00017567,2]
[338613466,1726800645983,-215.336126,0.00017567,2]
[338613467,1726800645993,-215.336126,0.00017567,2]
[338613468,1726800646003,-524.817909,0.00017567,2]
[338613469,1726800646013,-524.817909,0.00017567,2]
[338613470,1726800646022,-446.846941,0.00017567,2]
[338613471,1726800646031,-446.846941,0.00017567,2]
[338613472,1726800646040,-1796.381589,0.00017568,2]
[338613473,1726800646050,-1796.381589,0.00017568,2]
[338613474,1726800646059,-1796.381589,0.00017568,2]
[338613475,1726800646069,-1796.381589,0.00017568,2]
[338613476,1726800646078,-536.475242,0.00017568,2]
[338613477,1726800646093,-536.475242,0.00017568,2]
[338613478,1726800646107,-536.475242,0.00017568,2]
[338613479,1726800646117,-536.475242,0.00017568,2]
[338613480,1726800646129,-1538.86377,0.00017568,2]
[338613481,1726800646139,-1538.86377,0.00017568,2]
[338613482,1726800646149,-1538.86377,0.00017568,2]
[338613483,1726800646159,-1538.86377,0.00017568,2]
[338613484,1726800646168,-266.41875,0.00017568,2]
[338613485,1726800646179,-266.41875,0.00017568,2]
[338613486,1726800646188,-266.41875,0.00017568,2]
[338613487,1726800646198,-266.41875,0.00017568,2]
[338613488,1726800646208,-166.37939,0.00017568,2]
[338613489,1726800646217,-166.37939,0.00017568,2]
[338613490,1726800646227,-166.37939,0.00017568,2]
[338613491,1726800646237,-166.37939,0.00017568,2]
[338613492,1726800646246,-151.0,0.00017568,2]
[338613493,1726800646257,-151.0,0.00017568,2]
[338613494,1726800646267,-215.336126,0.00017568,2]
[338613495,1726800646277,-215.336126,0.00017568,2]
[338613496,1726800646287,-215.336126,0.00017568,2]
[338613497,1726800646299,-215.336126,0.00017568,2]
[338613498,1726800646309,-918.575627,0.00017568,2]
[338613499,1726800646318,-918.575627,0.00017568,2]
[338613500,1726800646328,-151.0,0.00017568,2]
[338613501,1726800646338,-449.36578,0.00017568,2]
[338613502,1726800646348,-449.36578,0.00017568,2]
[338613503,1726800646358,-449.36578,0.00017568,2]
[338613506,1726800646367,-449.36578,0.00017568,2]
[338613508,1726800646378,-151.0,0.00017568,2]
[338613510,1726800646388,-352.213059,0.00017568,2]
[338613512,1726800646398,-352.213059,0.00017568,2]
[338613515,1726800646408,-151.0,0.00017569,2]
[338613517,1726800646417,-151.0,0.00017569,2]
[338613519,1726800646427,-473.082765,0.00017569,2]
[338613521,1726800646436,-473.082765,0.00017569,2]
[338613523,1726800646446,-160.97639217,0.00017569,2]
[338613525,1726800646456,-151.0,0.0001757,2]
[338613527,1726800646466,-151.0,0.0001757,2]
[338613529,1726800646475,-151.0,0.0001757,2]
[338613531,1726800646484,-2330.843153,0.0001757,2]
[338613532,1726800646494,-2330.843153,0.0001757,2]
[338613533,1726800646504,-390.483022,0.0001757,2]
[338613535,1726800646514,-390.483022,0.0001757,2]
[338613536,1726800646524,-151.0,0.0001757,2]
[338613538,1726800646535,-189.746743,0.0001757,2]
[338613540,1726800646546,-2124.604507,0.0001757,2]
[338613541,1726800646558,-2124.604507,0.0001757,2]
[338613542,1726800646568,-2124.604507,0.0001757,2]
[338613543,1726800646578,-2124.604507,0.0001757,2]
[338613544,1726800646588,-2109.787981,0.0001757,2]
[338613545,1726800646598,-2109.787981,0.0001757,2]
[338613546,1726800646609,-2109.787981,0.0001757,2]
[338613547,1726800646619,-2109.787981,0.0001757,2]
[338613548,1726800646629,-2109.787981,0.0001757,2]
[338613549,1726800646640,-2109.787981,0.0001757,2]
[338613550,1726800646651,-151.0,0.0001757,2]
[338613551,1726800646663,-151.0,0.0001757,2]
[338613552,1726800646674,-151.0,0.0001757,2]
[338613553,1726800646687,-151.0,0.0001757,2]
[338613554,1726800646696,-151.0,0.0001757,2]
[338613555,1726800646711,-152.96421,0.0001757,2]
[338613556,1726800646723,-151.0,0.0001757,2]
[338613557,1726800646733,-151.0,0.0001757,2]
[338613558,1726800646745,-151.0,0.0001757,2]
[338613559,1726800646755,-1796.381589,0.0001757,2]
[338613560,1726800646767,-1796.381589,0.0001757,2]
[338613561,1726800646778,-1796.381589,0.0001757,2]
[338613562,1726800646789,-1796.381589,0.0001757,2]
[338613563,1726800646801,-342.82527,0.0001757,2]
[338613564,1726800646813,-342.82527,0.0001757,2]
[338613565,1726800646825,-342.82527,0.0001757,2]
[338613566,1726800646837,-151.0,0.0001757,2]
[338613567,1726800646847,-151.0,0.0001757,2]
[338613568,1726800646857,-151.0,0.0001757,2]
[338613569,1726800647035,-342.82527,0.0001757,2]
[338613570,1726800647046,-342.82527,0.0001757,2]
[338613571,1726800647065,-342.82527,0.0001757,2]
[338613572,1726800647075,-200.235364,0.0001757,2]
[338613573,1726800647085,-536.475242,0.0001757,2]
[338613574,1726800647100,-318.599018,0.0001757,2]
[338613575,1726800647112,-318.599018,0.0001757,2]
[338613576,1726800647122,-318.599018,0.0001757,2]
[338613577,1726800647133,-536.475242,0.0001757,2]
[338613578,1726800647146,-473.082765,0.0001757,2]
[338613579,1726800647157,-318.599018,0.0001757,2]
[338613580,1726800647167,-473.082765,0.0001757,2]
[338613581,1726800647179,-318.599018,0.0001757,2]
[338613582,1726800647190,-473.082765,0.0001757,2]
[338613583,1726800647201,-318.599018,0.0001757,2]
[338613584,1726800647211,-473.082765,0.0001757,2]
[338613585,1726800647222,-473.082765,0.0001757,2]
[338613586,1726800647233,-473.082765,0.0001757,2]
[338613587,1726800647243,-1538.86377,0.0001757,2]
[338613588,1726800647254,-1538.86377,0.0001757,2]
[338613589,1726800647265,-1538.86377,0.0001757,2]
[338613590,1726800647276,-1538.86377,0.0001757,2]
[338613591,1726800647286,-296.264255,0.0001757,2]
[338613592,1726800647299,-296.264255,0.0001757,2]
[338613593,1726800647310,-296.264255,0.0001757,2]
[338613594,1726800647320,-296.264255,0.0001757,2]
[338613595,1726800647331,-296.264255,0.0001757,2]
[338613596,1726800647343,-296.264255,0.0001757,2]
[338613597,1726800647354,-266.41875,0.0001757,2]
[338613598,1726800647364,-266.41875,0.0001757,2]
[338613599,1726800647374,-266.41875,0.0001757,2]
[338613600,1726800647385,-266.41875,0.0001757,2]
[338613601,1726800647394,-151.0,0.0001757,2]
[338613602,1726800647405,-151.0,0.0001757,2]
[338613603,1726800647415,-151.0,0.0001757,2]
[338613604,1726800647426,-151.0,0.0001757,2]
[338613605,1726800647438,-151.0,0.0001757,2]
[338613606,1726800647449,-164.288608,0.0001757,2]
[338613607,1726800647459,-166.37939,0.0001757,2]
[338613608,1726800647471,-166.37939,0.0001757,2]
[338613609,1726800647481,-166.37939,0.0001757,2]
[338613610,1726800647492,-166.37939,0.0001757,2]
[338613611,1726800647502,-151.0,0.0001757,2]
[338613612,1726800647512,-151.0,0.0001757,2]
[338613613,1726800647522,-215.336126,0.0001757,2]
[338613614,1726800647532,-215.336126,0.0001757,2]
[338613615,1726800647542,-215.336126,0.0001757,2]
[338613616,1726800647554,-215.336126,0.0001757,2]
[338613617,1726800647565,-918.575627,0.0001757,2]
[338613618,1726800647574,-918.575627,0.0001757,2]
[338613619,1726800647584,-918.575627,0.0001757,2]
[338613620,1726800647594,-918.57562124,0.0001757,2]
[338613621,1726800647606,-151.0,0.0001757,2]
[338613622,1726800647616,-151.0,0.0001757,2]
[338613623,1726800647626,-449.36578,0.0001757,2]
[338613624,1726800647636,-449.36578,0.0001757,2]
[338613625,1726800647647,-449.36578,0.0001757,2]
[338613626,1726800647657,-449.36578,0.0001757,2]
[338613627,1726800647667,-449.36578,0.0001757,2]
[338613628,1726800647677,-449.36578,0.0001757,2]